fUSD/lending_fUSD_20251109
["ID","MTS","AMOUNT","RATE_DAILY","PERIOD"]
[393483708,1762713038798,-151.0,0.00023533,2]
[393483709,1762713038808,-151.0,0.00023533,2]
[393483710,1762713038818,-151.0,0.00023533,2]
[393483711,1762713038828,-151.0,0.00023533,2]
[393483712,1762713038839,-151.0,0.00023533,2]
[393483713,1762713038850,-151.0,0.00023533,2]
[393483714,1762713038859,-151.0,0.00023533,2]
[393483715,1762713038870,-151.0,0.00023533,2]
[393483716,1762713038879,-151.0,0.00023533,2]
[393483717,1762713038888,-151.0,0.00023533,2]
[393483718,1762713038897,-151.0,0.00023533,2]
[393483719,1762713038905,-151.0,0.00023533,2]
[393483720,1762713038914,-151.0,0.00023533,2]
[393483721,1762713038924,-151.0,0.00023533,2]
[393483722,1762713038933,-151.0,0.00023533,2]
[393483723,1762713038943,-151.0,0.00023533,2]
[393483724,1762713038952,-151.0,0.00023533,2]
[393483725,1762713038962,-151.0,0.00023533,2]
[393483726,1762713038972,-151.0,0.00023533,2]
[393483727,1762713038982,-151.0,0.00023533,2]
[393483728,1762713038991,-151.0,0.00023533,2]
[393483729,1762713039001,-151.0,0.00023533,2]
[393483730,1762713039010,-151.0,0.00023533,2]
[393483731,1762713039020,-151.0,0.00023533,2]
[393483732,1762713039030,-151.0,0.00023533,2]
[393483733,1762713039040,-151.0,0.00023533,2]
[393483734,1762713039050,-151.0,0.00023533,2]
[393483735,1762713039060,-151.0,0.00023533,2]
[393483736,1762713039079,-151.0,0.00023533,2]
[393483737,1762713039091,-151.0,0.00023533,2]
[393483738,1762713039102,-151.0,0.00023533,2]
[393483739,1762713039113,-151.0,0.00023533,2]
[393483740,1762713039123,-151.0,0.00023533,2]
[393483741,1762713039134,-906.0,0.00023547,2]
[393483742,1762713039144,-1189.0,0.00023547,2]
[393483743,1762713039155,-596.318,0.00023547,2]
[393483744,1762713039165,-607.0,0.00023547,2]
[393483745,1762713039176,-3424.0,0.00023547,2]
[393483746,1762713039186,-168.0,0.00023643,2]
[393483747,1762713039196,-168.0,0.00023648,2]
[393483748,1762713039206,-168.0,0.00023685,2]
[393483749,1762713039216,-427.0,0.00023778,2]
[393483750,1762713039226,-168.0,0.00023845,2]
[393483751,1762713039237,-168.0,0.00023855,2]
[393483752,1762713039247,-427.0,0.00023933,2]
[393483753,1762713039257,-800.0,0.000248,9]
[393483754,1762713039267,-800.0,0.000248,9]
[393483755,1762713039277,-800.0,0.000248,9]
[393483756,1762713039287,-800.0,0.000248,9]
[393483757,1762713039298,-800.0,0.000248,9]
[393483758,1762713039308,-800.0,0.000248,9]
[393483759,1762713039318,-800.0,0.000248,9]
[393483760,1762713039328,-800.0,0.000248,9]
[393483761,1762713039338,-800.0,0.000248,9]
[393483762,1762713039348,-800.0,0.000248,9]
[393483763,1762713039359,-517.06,0.0002623,2]
[393483764,1762713039368,-904.0,0.00026547,2]
[393483765,1762713039378,-1187.0,0.00026547,2]
[393483766,1762713039390,-188.82,0.00027449,2]
[393483767,1762713039400,-500.0,0.00027671,2]
[393483768,1762713039410,-300.0,0.00028873,2]
[393483769,1762713039421,-484.94,0.00028905,16]
[393483770,1762713039431,-500.0,0.00030137,120]
[393483771,1762713039440,-164.21,0.00030137,120]
[393483772,1762713039450,-500.0,0.00030411,120]
[393483773,1762713039460,-500.0,0.00030685,120]
[393483774,1762713039468,-176.67,0.00030801,120]
[393483775,1762713039478,-5000.0,0.00030801,2]
[393483776,1762713039487,-500.0,0.00030959,120]
[393483777,1762713039497,-500.0,0.00031233,120]
[393483778,1762713039507,-1104.16044283,0.00031346,2]
[393483779,1762713039517,-500.0,0.00031507,120]
[393483780,1762713039527,-500.0,0.00031781,120]
[393483781,1762713039537,-500.0,0.00032055,120]
[393483782,1762713039547,-1848.772,0.00032172,31]
[393483783,1762713039558,-249.59,0.00032172,31]
[393483784,1762713039568,-500.0,0.00032329,120]
[393483785,1762713039578,-500.0,0.00032603,120]
[393483786,1762713039589,-434.0,0.0003263,2]
[393483787,1762713039598,-500.0,0.00032877,120]
[393483788,1762713039608,-500.0,0.00033151,120]
[393483789,1762713039618,-188.82,0.00034298,2]
[393483790,1762713039631,-282.33133403,0.00035616,2]
[393483791,1762713039642,-409.22644987,0.00036417,30]
[393483792,1762713039656,-590.77355013,0.00036417,30]
[393483793,1762713039666,-1000.0,0.00036417,30]
[393483794,1762713039675,-1000.0,0.00036417,30]
[393483795,1762713039684,-1000.0,0.00036417,30]
[393483796,1762713039693,-1317.65,0.00036896,30]
[393483797,1762713039702,-11479.03,0.00037067,2]
[393483798,1762713039712,-4707.92952166,0.00037502,2]
[393483799,1762713039721,-500.0,0.00037923,30]
[393483800,1762713039731,-517.06,0.0003801,2]
[393483801,1762713039742,-500.0,0.00038197,30]
[393483802,1762713039752,-477.41,0.00038318,2]
[393483803,1762713039762,-500.0,0.00038356,2]
[393483804,1762713039772,-861.21,0.00038471,30]
[393483805,1762713039782,-150.0,0.00038695,2]
[393483806,1762713039797,-1166.66666,0.0003885,2]
[393483807,1762713039808,-2000.0,0.000389,2]
[393483808,1762713039818,-952.55028704,0.00038928,2]
[393483809,1762713039827,-1337.13240542,0.00038935,11]
[393483810,1762713039840,-165.33225741,0.00038935,15]
[393483811,1762713039851,-1000.0,0.00038938,2]
[393483812,1762713039861,-8844.4508,0.00038938,2]
[393483813,1762713039871,-952.55028703,0.00038951,2]
[393483814,1762713039880,-952.55028703,0.00038974,2]
[393483815,1762713039890,-952.55028703,0.00038997,2]
[393483816,1762713039900,-9934.0,0.00039,2]
[393483817,1762713039912,-29866.781622,0.00039018,4]
[393483818,1762713039922,-952.55028703,0.0003902,2]
[393483819,1762713039932,-76372.78166757,0.00039025,4]
[393483820,1762713039944,-17194.15319831,0.00039025,4]
[393483821,1762713039955,-2139.40000018,0.00039025,4]
[393483822,1762713039993,-15949.48824015,0.00039025,4]
[393483823,1762713040020,-71023.67284506,0.00039025,4]
[393483824,1762713040034,-26387.97540273,0.00039025,4]
[393483825,1762713040044,-95823.75764952,0.00039025,4]
[393483831,1762713040352,-11162.55030648,0.00039025,4]
[393483832,1762713040362,-2561.04127503,0.00039025,30]
[393483833,1762713040372,-86242.1534226,0.00039028,2]
[393483834,1762713040382,-2218.0,0.00039034,5]
[393483835,1762713040393,-952.55028703,0.00039043,2]
[393483836,1762713040402,-56287.26768382,0.00039052,30]
[393483837,1762713040437,-4860.16518457,0.00039052,30]
[393483838,1762713040450,-4139.83481543,0.00039052,30]
[393483839,1762713040475,-49518.20820195,0.00039052,30]
[393483848,1762713043519,-300838.45590442,0.00039052,30]
[393483849,1762713043528,-952.55028703,0.00039066,2]
[393483850,1762713043537,-500.0,0.00039073,5]
[393483851,1762713043547,-158.24029261,0.00039073,5]
[393483852,1762713043557,-500.0,0.00039073,5]
[393483853,1762713043567,-500.28744515,0.00039073,5]
[393483854,1762713043577,-500.0,0.00039073,5]
[393483855,1762713043586,-500.48636733,0.00039073,5]
[393483856,1762713043595,-500.77100973,0.00039073,5]
[393483857,1762713043605,-500.0,0.00039073,5]
[393483858,1762713043615,-371.21559919,0.00039073,5]
[393483859,1762713043626,-500.0,0.00039073,5]
[393483860,1762713043636,-500.0,0.00039073,5]
[393483861,1762713043646,-200.0,0.00039073,5]
[393483862,1762713043656,-500.0,0.00039073,5]
[393483863,1762713043666,-465.28535027,0.00039073,5]
[393483864,1762713043675,-952.55028703,0.00039089,2]
[393483865,1762713043684,-182.0091767,0.000391,120]
[393483866,1762713043693,-1575.73433828,0.000391,120]
[393483867,1762713043703,-185.62238957,0.000391,120]
[393483868,1762713043712,-952.55028703,0.00039112,2]
[393483869,1762713043721,-29866.781622,0.00039114,4]
[393483870,1762713043731,-21397.2615912,0.00039114,4]
[393483871,1762713043740,-5165.82096846,0.00039135,2]
[393483872,1762713043750,-165.33225741,0.00039135,15]
[393483873,1762713043760,-952.55028703,0.00039135,2]
[393483874,1762713043770,-500.0,0.00039173,5]
[393483876,1762713043779,-507.74347007,0.00039199,29]
[393483877,1762713043791,-181.0,0.00039205,120]
[393483878,1762713043800,-1753.0,0.00039205,120]
[393483879,1762713043811,-29866.781622,0.00039214,4]
[393483880,1762713043821,-21397.2615912,0.00039214,4]
[393483881,1762713043832,-15443.0635766,0.00039214,4]
[393483883,1762713043847,-44290.4996673,0.00039214,4]
[393483884,1762713043856,-64191.7847737,0.00039214,4]
[393483885,1762713043870,-29866.781622,0.00039215,4]
[393483886,1762713043879,-21397.2615912,0.00039215,4]
[393483887,1762713043889,-3305.40132934,0.0003922,10]
[393483888,1762713043898,-346.22799653,0.0003922,15]
[393483889,1762713043908,-1999.0,0.00039224,120]
[393483890,1762713043917,-25713.06228293,0.00039225,4]
[393483891,1762713043951,-1350.0,0.00039225,4]
[393483892,1762713046429,-1316.0,0.00023547,2]
[393483893,1762713046439,-1284.0,0.00026547,2]
[393483895,1762713046449,-152137.62744907,0.00039225,4]
[393483897,1762713046459,-171178.09273,0.00039225,4]
[393483898,1762713046467,-151.0,0.00039232,14]
[393483899,1762713046477,-2000.0,0.00039234,2]
[393483900,1762713046486,-150.0,0.00039234,20]
[393483901,1762713046495,-86242.1534226,0.00039235,2]
[393483902,1762713046504,-86242.1534226,0.00039235,2]
[393483903,1762713046515,-86242.1534226,0.00039235,2]
[393483904,1762713046524,-86242.1534226,0.00039235,2]
[393483905,1762713046534,-151.0,0.00039235,90]
[393483906,1762713046544,-280.528594,0.00039235,90]
[393483907,1762713046553,-151.0,0.00039235,120]
[393483908,1762713046563,-151.0,0.00039235,120]
[393483909,1762713046573,-153.443058,0.00039235,120]
[393483910,1762713046582,-151.0,0.00039235,120]
[393483911,1762713046591,-151.0,0.00039235,120]
[393483912,1762713046601,-151.0,0.00039235,120]
[393483913,1762713046610,-151.0,0.00039235,120]
[393483914,1762713046619,-151.0,0.00039235,120]
[393483915,1762713046629,-151.0,0.00039235,120]
[393483916,1762713046639,-151.0,0.00039235,120]
[393483917,1762713046648,-151.0,0.00039235,120]
[393483918,1762713046657,-168.329479,0.00039235,120]
[393483919,1762713046667,-151.0,0.00039235,120]
[393483920,1762713046678,-151.0,0.00039235,120]
[393483921,1762713046693,-151.0,0.00039235,120]
[393483922,1762713046703,-151.0,0.00039235,120]
[393483923,1762713046713,-151.0,0.00039235,120]
[393483924,1762713046722,-151.0,0.00039235,120]
[393483925,1762713046732,-151.0,0.00039235,120]
[393483926,1762713046741,-151.0,0.00039235,120]
[393483927,1762713046751,-151.0,0.00039235,120]
[393483928,1762713046760,-151.0,0.00039235,120]
[393483929,1762713046769,-151.0,0.00039235,120]
[393483930,1762713046779,-151.0,0.00039235,120]
[393483931,1762713046792,-170.222458,0.00039235,120]
[393483932,1762713046802,-161.189237,0.00039235,120]
[393483933,1762713046812,-151.0,0.00039235,120]
[393483934,1762713046821,-151.0,0.00039235,120]
[393483935,1762713046832,-151.0,0.00039235,120]
[393483936,1762713046842,-151.0,0.00039235,120]
[393483937,1762713046851,-151.0,0.00039235,120]
[393483938,1762713046861,-151.0,0.00039235,120]
[393483939,1762713046872,-151.0,0.00039235,120]
[393483940,1762713046882,-151.0,0.00039235,120]
[393483941,1762713046893,-151.0,0.00039235,120]
[393483942,1762713046904,-203.527445,0.00039235,120]
[393483943,1762713046915,-151.0,0.00039235,120]
[393483944,1762713046924,-151.0,0.00039235,120]
[393483945,1762713046934,-151.0,0.00039235,120]
[393483946,1762713046943,-151.0,0.00039235,120]
[393483947,1762713046953,-163.444605,0.00039235,120]
[393483948,1762713047176,-231.239817,0.00039235,120]
[393483949,1762713047186,-151.0,0.00039235,120]
[393483950,1762713047196,-151.0,0.00039235,120]
[393483951,1762713047206,-151.0,0.00039235,120]
[393483952,1762713047216,-151.0,0.00039235,120]
[393483953,1762713047226,-151.0,0.00039235,120]
[393483954,1762713047236,-151.0,0.00039235,120]
[393483955,1762713047246,-151.0,0.00039235,120]
[393483956,1762713047257,-151.0,0.00039235,60]
[393483957,1762713047267,-151.0,0.00039235,60]
[393483958,1762713047278,-169.22698,0.00039235,60]
[393483959,1762713047288,-151.0,0.00039235,120]
[393483960,1762713047298,-157.780969,0.00039235,120]
[393483961,1762713047307,-151.0,0.00039235,120]
[393483962,1762713047316,-151.0,0.00039235,120]
[393483963,1762713047327,-274.409551,0.00039235,120]
[393483964,1762713047337,-151.0,0.00039235,120]
[393483965,1762713047346,-151.0,0.00039235,120]
[393483966,1762713047356,-151.0,0.00039235,120]
[393483967,1762713047366,-151.0,0.00039235,120]
[393483968,1762713047376,-151.0,0.00039235,120]
[393483969,1762713047385,-151.0,0.00039235,120]
[393483970,1762713047395,-151.0,0.00039235,120]
[393483971,1762713047404,-151.0,0.00039235,120]
[393483972,1762713047414,-165.224313,0.00039235,120]
[393483973,1762713047425,-232.962515,0.00039235,120]
[393483974,1762713047434,-151.0,0.00039235,120]
[393483975,1762713047444,-151.0,0.00039235,120]
[393483976,1762713047454,-151.0,0.00039235,120]
[393483977,1762713047464,-151.0,0.00039235,120]
[393483978,1762713047474,-151.0,0.00039235,120]
[393483979,1762713047483,-151.0,0.00039235,120]
[393483980,1762713047493,-151.0,0.00039235,120]
[393483981,1762713047504,-151.0,0.00039235,120]
[393483982,1762713047515,-151.0,0.00039235,120]
[393483983,1762713047526,-151.0,0.00039235,120]
[393483984,1762713047537,-151.0,0.00039235,120]
[393483985,1762713047546,-151.0,0.00039235,120]
[393483986,1762713047556,-159.813094,0.00039235,120]
[393483987,1762713047566,-180.071723,0.00039235,120]
[393483988,1762713047576,-151.0,0.00039235,120]
[393483989,1762713047586,-151.0,0.00039235,120]
[393483990,1762713047600,-151.0,0.00039235,120]
[393483991,1762713047610,-241.346829,0.00039235,120]
[393483992,1762713047620,-151.0,0.00039235,120]
[393483993,1762713047630,-151.0,0.00039235,120]
[393483994,1762713047639,-168.63083,0.00039235,120]
[393483995,1762713047649,-151.0,0.00039235,120]
[393483996,1762713047659,-151.0,0.00039235,120]
[393483997,1762713047668,-151.0,0.00039235,120]
[393483998,1762713047679,-151.0,0.00039235,120]
[393483999,1762713047691,-151.0,0.00039235,120]
[393484000,1762713047702,-151.0,0.00039235,120]
[393484001,1762713047712,-151.0,0.00039235,120]
[393484002,1762713047722,-151.0,0.00039235,120]
[393484003,1762713047732,-159.78744,0.00039235,120]
[393484004,1762713047742,-151.0,0.00039235,120]
[393484005,1762713047752,-151.0,0.00039235,120]
[393484006,1762713047762,-151.0,0.00039235,120]
[393484007,1762713047772,-151.0,0.00039235,120]
[393484008,1762713047782,-151.0,0.00039235,120]
[393484009,1762713047795,-151.0,0.00039235,120]
[393484010,1762713047805,-151.0,0.00039235,120]
[393484011,1762713047815,-151.0,0.00039235,30]
[393484012,1762713047824,-151.0,0.00039235,30]
[393484013,1762713047835,-151.0,0.00039235,14]
[393484014,1762713047845,-163.282938,0.00039235,120]
[393484015,1762713047855,-151.0,0.00039235,120]
[393484016,1762713047866,-151.0,0.00039235,120]
[393484017,1762713047876,-151.0,0.00039235,120]
[393484018,1762713047885,-151.0,0.00039235,120]
[393484019,1762713047895,-151.0,0.00039235,120]
[393484020,1762713047907,-151.0,0.00039235,120]
[393484021,1762713047917,-151.0,0.00039235,120]
[393484022,1762713047928,-151.0,0.00039235,120]
[393484023,1762713047938,-151.0,0.00039235,120]
[393484024,1762713047948,-151.0,0.00039235,120]
[393484025,1762713047959,-151.0,0.00039235,120]
[393484026,1762713047969,-151.0,0.00039235,120]
[393484027,1762713047980,-151.0,0.00039235,120]
[393484028,1762713047990,-158.133195,0.00039235,120]
[393484029,1762713048001,-151.0,0.00039235,120]
[393484030,1762713048012,-151.0,0.00039235,120]
[393484031,1762713048024,-151.0,0.00039235,120]
[393484032,1762713048037,-151.0,0.00039235,120]
[393484033,1762713048047,-188.648086,0.00039235,120]
[393484034,1762713048058,-151.0,0.00039235,120]
[393484035,1762713048069,-151.0,0.00039235,120]
[393484036,1762713048079,-151.0,0.00039235,120]
[393484037,1762713048089,-151.0,0.00039235,120]
[393484038,1762713048099,-151.0,0.00039235,120]
[393484039,1762713048109,-151.0,0.00039235,120]
[393484040,1762713048118,-151.0,0.00039235,120]
[393484041,1762713048128,-151.0,0.00039235,120]
[393484042,1762713048138,-190.471971,0.00039235,120]
[393484043,1762713048148,-151.0,0.00039235,120]
[393484044,1762713048158,-151.0,0.00039235,120]
[393484045,1762713048167,-151.0,0.00039235,120]
[393484046,1762713048178,-151.0,0.00039235,120]
[393484047,1762713048187,-151.0,0.00039235,120]
[393484048,1762713048200,-151.0,0.00039235,120]
[393484049,1762713048211,-151.0,0.00039235,120]
[393484050,1762713048221,-151.0,0.00039235,120]
[393484051,1762713048231,-151.0,0.00039235,120]
[393484052,1762713048241,-176.557812,0.00039235,120]
[393484053,1762713048253,-151.0,0.00039235,120]
[393484054,1762713048263,-151.0,0.00039235,28]
[393484055,1762713048272,-151.0,0.00039235,28]
[393484056,1762713048283,-151.0,0.00039235,28]
[393484057,1762713048295,-151.0,0.00039235,28]
[393484058,1762713048305,-151.0,0.00039235,28]
[393484059,1762713048316,-151.0,0.00039235,120]
[393484060,1762713048328,-151.0,0.00039235,120]
[393484061,1762713048340,-151.0,0.00039235,120]
[393484062,1762713048350,-151.0,0.00039235,120]
[393484063,1762713048360,-151.0,0.00039235,120]
[393484064,1762713048370,-199.331308,0.00039235,120]
[393484065,1762713048379,-199.331308,0.00039235,120]
[393484066,1762713048390,-199.331308,0.00039235,120]
[393484067,1762713048400,-199.331308,0.00039235,120]
[393484068,1762713048410,-199.331308,0.00039235,120]
[393484069,1762713048420,-199.331308,0.00039235,120]
[393484070,1762713048429,-199.331308,0.00039235,120]
[393484071,1762713048440,-199.331308,0.00039235,120]
[393484072,1762713048449,-199.331308,0.00039235,120]
[393484073,1762713048459,-199.331308,0.00039235,120]
[393484074,1762713048468,-199.331308,0.00039235,120]
[393484075,1762713048478,-199.331308,0.00039235,120]
[393484076,1762713048489,-199.331308,0.00039235,120]
[393484077,1762713048502,-199.331308,0.00039235,120]
[393484078,1762713048513,-199.331308,0.00039235,120]
[393484079,1762713048522,-199.331308,0.00039235,120]
[393484080,1762713048533,-199.331308,0.00039235,120]
[393484081,1762713048543,-199.331308,0.00039235,120]
[393484082,1762713048553,-199.331308,0.00039235,120]
[393484083,1762713048563,-199.331307,0.00039235,120]
[393484084,1762713048572,-151.0,0.00039235,120]
[393484085,1762713048582,-151.0,0.00039238,120]
[393484086,1762713048592,-151.0,0.00039238,120]
[393484087,1762713048602,-166.124503,0.00039238,120]
[393484088,1762713048611,-15564.1239832,0.00039238,2]
[393484089,1762713048621,-28103.2132449,0.00039238,2]
[393484090,1762713048683,-50659.0528325,0.00039238,2]
[393484091,1762713048694,-150.0,0.00039238,7]
[393484092,1762713048705,-150.0,0.00039238,7]
[393484093,1762713048715,-150.0,0.00039238,7]
[393484094,1762713048725,-150.0,0.00039238,7]
[393484095,1762713048735,-150.0,0.00039238,7]
[393484096,1762713048750,-150.0,0.00039238,7]
[393484097,1762713048760,-150.0,0.00039238,7]
[393484098,1762713048770,-150.0,0.00039238,7]
[393484099,1762713048780,-150.0,0.00039238,7]
[393484100,1762713048792,-150.0,0.00039238,7]
[393484101,1762713048804,-150.0,0.00039238,7]
[393484102,1762713048814,-150.0,0.00039238,7]
[393484103,1762713048824,-150.0,0.00039238,7]
[393484104,1762713048835,-193.23155827,0.00039238,2]
[393484105,1762713048846,-150.0,0.00039238,30]
[393484106,1762713048856,-401.927823,0.0003925,60]
[393484107,1762713048868,-199.379692,0.0003925,60]
[393484108,1762713048878,-464.040172,0.0003925,60]
[393484109,1762713048887,-10419.95597667,0.00039252,29]
[393484110,1762713048898,-359696.79636995,0.00039252,7]
[393484111,1762713048911,-51016.0624943,0.00039252,7]
[393484112,1762713049528,-95622.9233897,0.00039252,7]
[393484113,1762713049539,-3116.2,0.00039252,7]
[393484114,1762713049572,-1119.02860891,0.00039252,7]
[393484115,1762713049585,-737302.5738676,0.00039252,7]
[393484116,1762713049596,-7083.84232627,0.00039252,7]
[393484117,1762713049608,-3395.74888,0.00039252,7]
[393484118,1762713049619,-3297.73890006,0.00039252,7]
[393484119,1762713049630,-3208.25261387,0.00039252,7]
[393484120,1762713049641,-511.05,0.00039252,7]
[393484121,1762713049652,-4974.2872835,0.00039252,7]
[393484122,1762713049664,-1509.16965402,0.00039252,7]
[393484136,1762713188254,150.0,0.0002362,120]
[393484170,1762713323103,-160.81718007,0.00023776,46]
[393484178,1762713574985,161.0,0.00023,30]
[393484181,1762713705918,619.15,0.00013699,2]
[393484189,1762714009307,160.81718005,0.00022106,42]
[393484190,1762714012114,-188.33671453,0.00020187,2]
[393484197,1762714189356,160.81718005,0.00022106,42]
[393484218,1762714231520,-394.0,0.00020187,2]
[393484219,1762714231529,-430.81328547,0.00020187,2]
[393484220,1762714231538,-202.13980133,0.00020509,2]
[393484221,1762714231684,-98.47372463,0.00020509,2]
[393484224,1762714231694,-300.0,0.00020509,2]
[393484225,1762714231703,-195.0,0.0002083,2]
[393484228,1762714231713,-300.0,0.00021643,2]
[393484229,1762714231723,-1200.0,0.00022205,2]
[393484230,1762714231733,-300.0,0.00022205,2]
[393484231,1762714231743,-197.18308,0.00022206,2]
[393484232,1762714231752,-336.6374805,0.00022206,2]
[393484233,1762714231761,-759.02832703,0.00022206,2]
[393484234,1762714231772,-1685.529855,0.00022206,2]
[393484235,1762714231783,-55.44181797,0.00022206,2]
[393484236,1762714231792,-195.0,0.00022206,2]
[393484238,1762714231802,-300.0,0.00022206,2]
[393484240,1762714231811,-193.0,0.00022206,2]
[393484242,1762714231820,-300.0,0.00022206,2]
[393484243,1762714231829,-200.0,0.00022206,2]
[393484244,1762714231839,-250.0,0.00022206,2]
[393484245,1762714231848,-250.0,0.00022206,2]
[393484246,1762714231858,-158.0,0.00024125,2]
[393484248,1762714231867,-480.0,0.00024237,2]
[393484249,1762714231876,-800.0,0.000248,9]
[393484251,1762714231886,-800.0,0.000248,9]
[393484252,1762714231895,-800.0,0.000248,9]
[393484253,1762714231904,-800.0,0.000248,9]
[393484254,1762714231914,-800.0,0.000248,9]
[393484255,1762714231923,-800.0,0.000248,9]
[393484256,1762714231934,-800.0,0.000248,9]
[393484257,1762714231943,-800.0,0.000248,9]
[393484258,1762714231952,-800.0,0.000248,9]
[393484259,1762714231961,-692.99658203,0.000248,9]
[393484260,1762714231973,-107.00341797,0.000248,9]
[393484261,1762714231982,-177.65669196,0.00025364,2]
[393484264,1762714237372,-500.0,0.00025363,2]
[393484265,1762714237382,-500.0,0.00025363,2]
[393484266,1762714237392,-359.1291185,0.00025363,2]
[393484267,1762714237404,-500.0,0.00025363,2]
[393484268,1762714237413,-202.44003714,0.00025363,2]
[393484269,1762714237423,-500.0,0.00025363,2]
[393484270,1762714237432,-488.79042335,0.00025363,2]
[393484271,1762714237443,-500.0,0.00025363,2]
[393484272,1762714237452,-500.0,0.00025363,2]
[393484273,1762714237462,-500.0,0.00025363,2]
[393484274,1762714237471,-500.0,0.00025363,2]
[393484275,1762714237480,-500.0,0.00025363,2]
[393484276,1762714237489,-500.0,0.00025363,2]
[393484277,1762714237499,-500.0,0.00025363,2]
[393484278,1762714237508,-500.0,0.00025363,2]
[393484279,1762714237518,-500.0,0.00025363,2]
[393484280,1762714237527,-500.0,0.00025363,2]
[393484281,1762714237537,-500.0,0.00025363,2]
[393484282,1762714237545,-500.0,0.00025363,2]
[393484283,1762714237555,-500.0,0.00025363,2]
[393484284,1762714237564,-500.0,0.00025363,2]
[393484285,1762714237573,-500.0,0.00025363,2]
[393484286,1762714237582,-500.0,0.00025363,2]
[393484287,1762714237592,-500.0,0.00025363,2]
[393484288,1762714237601,-821.0,0.00025371,2]
[393484289,1762714237610,-1596.0,0.00025371,2]
[393484290,1762714237620,-1273.0,0.00025371,2]
[393484291,1762714237629,-813.749,0.00025371,2]
[393484293,1762714237639,-250.0,0.00025371,2]
[393484294,1762714237650,-559.0,0.00025371,2]
[393484296,1762714237659,-6478.0,0.00025371,2]
[393484297,1762714237668,-347.5,0.00025718,2]
[393484298,1762714237678,-150.0,0.00025746,2]
[393484299,1762714237688,-344.1969,0.00026347,2]
[393484301,1762714237698,-1047.13604972,0.00026373,2]
[393484302,1762714237707,-151.0,0.00026431,2]
[393484304,1762714237717,-151.0,0.00026431,2]
[393484305,1762714237726,-151.0,0.00026431,2]
[393484306,1762714237736,-151.0,0.00026431,2]
[393484307,1762714237745,-151.0,0.00026431,2]
[393484308,1762714237754,-151.0,0.00026431,2]
[393484309,1762714237763,-151.0,0.00026431,2]
[393484310,1762714237773,-18438.42863405,0.00026437,3]
[393484311,1762714237784,-589.9798487,0.00026437,3]
[393484312,1762714237847,-3036.84818,0.00026437,3]
[393484313,1762714239549,-15611.64095999,0.00026437,3]
[393484314,1762714239583,-521.29149955,0.00026437,3]
[393484315,1762714239594,-319.9973267,0.00026437,3]
[393484316,1762714239691,-2090.40897658,0.00026437,3]
[393484317,1762714239775,-305.0000025,0.00026437,3]
[393484318,1762714239787,-395.472,0.00026437,3]
[393484319,1762714239843,-2038.05821614,0.00026437,3]
[393484328,1762714242501,-335.42208828,0.00026437,3]
[393484330,1762714242513,-927.35336414,0.00026437,3]
[393484331,1762714242525,-3755.54023686,0.00026437,3]
[393484332,1762714242628,-20.92630163,0.00026437,3]
[393484333,1762714242670,-35555.00808138,0.00026437,3]
[393484334,1762714242680,-307.99365387,0.00026446,2]
[393484335,1762714242689,-500.0,0.00026446,2]
[393484336,1762714242698,-500.0,0.00026446,2]